[Event "Titled Tuesday Blitz July 25 Late 2023"]
[White "zano2023"]
[Black "disciplinedbrat"]
[WhiteElo "2036"]
[BlackElo "2274"]
[Result "0-1"]
[Round "10"]
[TimeControl "180+2"]
[Date "2023.07.25"]
[WhiteClock "0:00:39"]
[BlackClock "0:02:02"]
[Board "106"]

1. d4 {[%clk 0:03:00]}  a6 {[%clk 0:02:59]} 2. Nd2 {[%clk 0:02:58]}  b6 {[%clk 0:02:59]} 3. e4 {[%clk 0:02:58]}  Bb7 {[%clk 0:02:59]} 4. Ngf3 {[%clk 0:02:59]}  g6 {[%clk 0:02:58]} 5. Bd3 {[%clk 0:02:59]}  Bg7 {[%clk 0:02:58]} 6. O-O {[%clk 0:03:00]}  e6 {[%clk 0:02:58]} 7. Re1 {[%clk 0:03:00]}  Ne7 {[%clk 0:02:59]} 8. Nf1 {[%clk 0:02:59]}  d6 {[%clk 0:03:00]} 9. Ng3 {[%clk 0:02:59]}  Nd7 {[%clk 0:03:01]} 10. Be3 {[%clk 0:02:59]}  h6 {[%clk 0:03:01]} 11. Qd2 {[%clk 0:02:59]}  f5 {[%clk 0:03:01]} 12. c4 {[%clk 0:02:51]}  fxe4 {[%clk 0:02:56]} 13. Nxe4 {[%clk 0:02:46]}  Nf6 {[%clk 0:02:56]} 14. Nxf6+ {[%clk 0:02:45]}  Bxf6 {[%clk 0:02:56]} 15. Qe2 {[%clk 0:02:37]}  Qd7 {[%clk 0:02:49]} 16. Nd2 {[%clk 0:02:37]}  O-O-O {[%clk 0:02:46]} 17. Be4 {[%clk 0:02:34]}  Nf5 {[%clk 0:02:45]} 18. Bxb7+ {[%clk 0:02:33]}  Kxb7 {[%clk 0:02:45]} 19. Ne4 {[%clk 0:02:31]}  Bxd4 {[%clk 0:02:42]} 20. Bxd4 {[%clk 0:02:21]}  Nxd4 {[%clk 0:02:43]} 21. Qd3 {[%clk 0:02:22]}  e5 {[%clk 0:02:42]} 22. Nf6 {[%clk 0:02:21]}  Qf7 {[%clk 0:02:38]} 23. Ne4 {[%clk 0:02:17]}  Rhf8 {[%clk 0:02:36]} 24. f3 {[%clk 0:02:16]}  g5 {[%clk 0:02:36]} 25. b4 {[%clk 0:02:14]}  d5 {[%clk 0:02:36]} 26. cxd5 {[%clk 0:02:14]}  Qxd5 {[%clk 0:02:36]} 27. Qc3 {[%clk 0:02:02]}  Nb5 {[%clk 0:02:29]} 28. Qe3 {[%clk 0:01:56]}  Qd4 {[%clk 0:02:29]} 29. a4 {[%clk 0:01:55]}  Qxe3+ {[%clk 0:02:25]} 30. Rxe3 {[%clk 0:01:55]}  Nd4 {[%clk 0:02:25]} 31. Ra2 {[%clk 0:01:48]}  g4 {[%clk 0:02:23]} 32. fxg4 {[%clk 0:01:41]}  Nc2 {[%clk 0:02:23]} 33. Rf3 {[%clk 0:01:13]}  Rxf3 {[%clk 0:02:14]} 34. gxf3 {[%clk 0:01:13]}  Nxb4 {[%clk 0:02:14]} 35. Re2 {[%clk 0:01:10]}  Nc6 {[%clk 0:02:10]} 36. Nf6 {[%clk 0:01:00]}  Rd4 {[%clk 0:02:07]} 37. h4 {[%clk 0:00:57]}  Rxa4 {[%clk 0:02:07]} 38. Ne4 {[%clk 0:00:52]}  Nd4 {[%clk 0:02:07]} 39. Rf2 {[%clk 0:00:52]}  Ra1+ {[%clk 0:02:02]} 40. Kg2 {[%clk 0:00:52]}  a5 {[%clk 0:02:02]} 41. g5 {[%clk 0:00:52]}  hxg5 {[%clk 0:02:02]} 42. hxg5 {[%clk 0:00:52]}  a4 {[%clk 0:02:02]} 43. g6 {[%clk 0:00:52]}  Nf5 {[%clk 0:02:02]} 44. Ng5 {[%clk 0:00:42]}  a3 {[%clk 0:02:02]} 45. Ne6 {[%clk 0:00:42]}  a2 {[%clk 0:02:02]} 46. g7 {[%clk 0:00:42]}  Nxg7 {[%clk 0:02:02]} 47. Nxg7 {[%clk 0:00:39]}  Rg1+ {[%clk 0:02:02]} 0-1


[Site "https://www.chess.com"]

[Event "Titled Tuesday Blitz July 25 Late 2023"]
[White "Dwilewicz, Katarzyna"]
[Black "Thiel, Thomas"]
[WhiteFideId "1148486"]
[BlackFideId "4615964"]
[WhiteElo "2373"]
[BlackElo "2246"]
[Result "0-1"]
[Round "10"]
[TimeControl "180+2"]
[Date "2023.07.25"]
[WhiteClock "0:00:13"]
[BlackClock "0:01:24"]
[Board "109"]

1. e4 {[%clk 0:02:58]}  d5 {[%clk 0:02:59]} 2. exd5 {[%clk 0:02:58]}  Nf6 {[%clk 0:02:59]} 3. d4 {[%clk 0:02:55]}  Nxd5 {[%clk 0:02:59]} 4. Nf3 {[%clk 0:02:55]}  g6 {[%clk 0:02:59]} 5. c4 {[%clk 0:02:55]}  Nb6 {[%clk 0:02:59]} 6. Nc3 {[%clk 0:02:55]}  Bg7 {[%clk 0:02:59]} 7. Be3 {[%clk 0:02:54]}  O-O {[%clk 0:02:58]} 8. Be2 {[%clk 0:02:55]}  Bg4 {[%clk 0:02:57]} 9. b3 {[%clk 0:02:55]}  Nc6 {[%clk 0:02:53]} 10. O-O {[%clk 0:02:43]}  Bxf3 {[%clk 0:02:40]} 11. Bxf3 {[%clk 0:02:43]}  Nxd4 {[%clk 0:02:40]} 12. Bxb7 {[%clk 0:02:42]}  Rb8 {[%clk 0:02:39]} 13. Be4 {[%clk 0:02:40]}  c5 {[%clk 0:02:35]} 14. Rc1 {[%clk 0:02:35]}  f5 {[%clk 0:02:32]} 15. Bd5+ {[%clk 0:02:20]}  Nxd5 {[%clk 0:02:31]} 16. cxd5 {[%clk 0:02:16]}  f4 {[%clk 0:02:29]} 17. Bxd4 {[%clk 0:02:10]}  cxd4 {[%clk 0:02:29]} 18. Ne4 {[%clk 0:02:03]}  f3 {[%clk 0:02:19]} 19. gxf3 {[%clk 0:01:59]}  Qxd5 {[%clk 0:02:18]} 20. Qd3 {[%clk 0:01:58]}  Qf5 {[%clk 0:02:15]} 21. Kg2 {[%clk 0:01:53]}  Be5 {[%clk 0:01:59]} 22. Rc5 {[%clk 0:01:48]}  Qf4 {[%clk 0:01:59]} 23. Ng3 {[%clk 0:01:43]}  Bd6 {[%clk 0:01:53]} 24. Rd5 {[%clk 0:01:30]}  Be5 {[%clk 0:01:53]} 25. Re1 {[%clk 0:01:27]}  Bf6 {[%clk 0:01:44]} 26. Re4 {[%clk 0:01:24]}  Qc7 {[%clk 0:01:40]} 27. h4 {[%clk 0:01:07]}  Qc6 {[%clk 0:01:37]} 28. Ra5 {[%clk 0:01:04]}  Qb6 {[%clk 0:01:33]} 29. Ra6 {[%clk 0:01:01]}  Qb5 {[%clk 0:01:32]} 30. Qxb5 {[%clk 0:00:53]}  Rxb5 {[%clk 0:01:33]} 31. Rxa7 {[%clk 0:00:54]}  Rd5 {[%clk 0:01:30]} 32. Nf1 {[%clk 0:00:43]}  d3 {[%clk 0:01:29]} 33. Nd2 {[%clk 0:00:31]}  Rc8 {[%clk 0:01:28]} 34. Rc4 {[%clk 0:00:17]}  Rxc4 {[%clk 0:01:26]} 35. b4 {[%clk 0:00:13]}  Rc2 {[%clk 0:01:24]} 0-1


[Site "https://www.chess.com"]

[Event "Titled Tuesday Blitz July 25 Late 2023"]
[White "Hamidi, Amir Mohammad"]
[Black "Jahnz, Fabian"]
[WhiteFideId "12563285"]
[BlackFideId "4653300"]
[WhiteElo "2724"]
[BlackElo "2157"]
[Result "0-1"]
[Round "10"]
[TimeControl "180+2"]
[Date "2023.07.25"]
[WhiteClock "0:01:10"]
[BlackClock "0:01:29"]
[Board "113"]

1. e4 {[%clk 0:03:00]}  c6 {[%clk 0:02:59]} 2. d4 {[%clk 0:02:58]}  d5 {[%clk 0:02:59]} 3. e5 {[%clk 0:02:59]}  Bf5 {[%clk 0:02:59]} 4. Ne2 {[%clk 0:03:00]}  h6 {[%clk 0:02:42]} 5. Ng3 {[%clk 0:02:59]}  Bg6 {[%clk 0:02:41]} 6. e6 {[%clk 0:02:58]}  Qd6 {[%clk 0:02:38]} 7. exf7+ {[%clk 0:02:57]}  Kxf7 {[%clk 0:02:36]} 8. Bd3 {[%clk 0:02:56]}  Bxd3 {[%clk 0:02:31]} 9. Qxd3 {[%clk 0:02:57]}  Nf6 {[%clk 0:02:30]} 10. c3 {[%clk 0:02:50]}  Nbd7 {[%clk 0:02:29]} 11. Nd2 {[%clk 0:02:47]}  e5 {[%clk 0:02:28]} 12. O-O {[%clk 0:02:34]}  e4 {[%clk 0:02:23]} 13. Qe2 {[%clk 0:02:33]}  Be7 {[%clk 0:02:16]} 14. f3 {[%clk 0:02:26]}  exf3 {[%clk 0:02:15]} 15. Nxf3 {[%clk 0:02:25]}  Qe6 {[%clk 0:01:56]} 16. Ne5+ {[%clk 0:02:11]}  Ke8 {[%clk 0:01:48]} 17. Ng6 {[%clk 0:02:03]}  Qxe2 {[%clk 0:01:48]} 18. Nxe2 {[%clk 0:02:03]}  Rg8 {[%clk 0:01:45]} 19. Nxe7 {[%clk 0:01:57]}  Kxe7 {[%clk 0:01:46]} 20. Nf4 {[%clk 0:01:57]}  g5 {[%clk 0:01:40]} 21. Re1+ {[%clk 0:01:56]}  Kf7 {[%clk 0:01:39]} 22. Nd3 {[%clk 0:01:52]}  Ne4 {[%clk 0:01:37]} 23. Nf2 {[%clk 0:01:52]}  Ndf6 {[%clk 0:01:35]} 24. g3 {[%clk 0:01:30]}  Rae8 {[%clk 0:01:34]} 25. Kg2 {[%clk 0:01:24]}  Kg6 {[%clk 0:01:33]} 26. Ng4 {[%clk 0:01:23]}  Nxg4 {[%clk 0:01:32]} 27. h3 {[%clk 0:01:20]}  Ngf6 {[%clk 0:01:32]} 28. h4 {[%clk 0:01:16]}  gxh4 {[%clk 0:01:30]} 29. gxh4 {[%clk 0:01:17]}  Kh7+ {[%clk 0:01:30]} 30. Kh2 {[%clk 0:01:15]}  Ng4+ {[%clk 0:01:29]} 31. Kh3 {[%clk 0:01:14]}  Nef2+ {[%clk 0:01:29]} 32. Kg2 {[%clk 0:01:10]}  Rxe1 {[%clk 0:01:29]} 0-1


[Site "https://www.chess.com"]

[Event "Titled Tuesday Blitz July 25 Late 2023"]
[White "Rian, Kapriaga"]
[Black "Celestino, Rafael Teixeira"]
[WhiteFideId "7103263"]
[BlackFideId "2108925"]
[WhiteElo "2323"]
[BlackElo "2250"]
[Result "1-0"]
[Round "10"]
[TimeControl "180+2"]
[Date "2023.07.25"]
[WhiteClock "0:00:05"]
[BlackClock "0:00:23"]
[Board "114"]

1. d4 {[%clk 0:02:54]}  Nf6 {[%clk 0:02:53]} 2. Nf3 {[%clk 0:02:53]}  g6 {[%clk 0:02:54]} 3. Bg5 {[%clk 0:02:53]}  Bg7 {[%clk 0:02:54]} 4. Nbd2 {[%clk 0:02:53]}  c5 {[%clk 0:02:53]} 5. e3 {[%clk 0:02:53]}  d5 {[%clk 0:02:52]} 6. c3 {[%clk 0:02:53]}  O-O {[%clk 0:02:50]} 7. Be2 {[%clk 0:02:53]}  Nc6 {[%clk 0:02:50]} 8. O-O {[%clk 0:02:53]}  h6 {[%clk 0:02:50]} 9. Bh4 {[%clk 0:02:52]}  b6 {[%clk 0:02:45]} 10. a4 {[%clk 0:02:42]}  g5 {[%clk 0:02:23]} 11. Bg3 {[%clk 0:02:40]}  Ne4 {[%clk 0:02:24]} 12. Nxe4 {[%clk 0:02:33]}  dxe4 {[%clk 0:02:25]} 13. Nd2 {[%clk 0:02:33]}  Bf5 {[%clk 0:02:21]} 14. Bb5 {[%clk 0:02:28]}  Rc8 {[%clk 0:02:20]} 15. Ba6 {[%clk 0:02:13]}  cxd4 {[%clk 0:02:18]} 16. exd4 {[%clk 0:02:09]}  Qd5 {[%clk 0:02:05]} 17. Bxc8 {[%clk 0:02:07]}  Rxc8 {[%clk 0:02:06]} 18. Qb3 {[%clk 0:02:03]}  Qd7 {[%clk 0:02:04]} 19. Qd1 {[%clk 0:01:52]}  Qd5 {[%clk 0:01:48]} 20. Qe2 {[%clk 0:01:48]}  Bg6 {[%clk 0:01:44]} 21. h4 {[%clk 0:01:29]}  f5 {[%clk 0:01:43]} 22. hxg5 {[%clk 0:01:28]}  hxg5 {[%clk 0:01:44]} 23. f3 {[%clk 0:01:25]}  f4 {[%clk 0:01:36]} 24. fxe4 {[%clk 0:01:24]}  Qd7 {[%clk 0:00:50]} 25. Bf2 {[%clk 0:01:22]}  Rf8 {[%clk 0:00:49]} 26. d5 {[%clk 0:01:06]}  Ne5 {[%clk 0:00:49]} 27. Bd4 {[%clk 0:01:07]}  g4 {[%clk 0:00:43]} 28. Qb5 {[%clk 0:01:00]}  Qd6 {[%clk 0:00:38]} 29. Nc4 {[%clk 0:00:54]}  Nxc4 {[%clk 0:00:37]} 30. Qxc4 {[%clk 0:00:54]}  Bh6 {[%clk 0:00:38]} 31. e5 {[%clk 0:00:52]}  Qd8 {[%clk 0:00:38]} 32. d6+ {[%clk 0:00:51]}  Kh7 {[%clk 0:00:38]} 33. Rad1 {[%clk 0:00:42]}  exd6 {[%clk 0:00:38]} 34. exd6 {[%clk 0:00:42]}  Qh4 {[%clk 0:00:38]} 35. Bf2 {[%clk 0:00:18]}  g3 {[%clk 0:00:38]} 36. Bxg3 {[%clk 0:00:18]}  Qxg3 {[%clk 0:00:39]} 37. Rf3 {[%clk 0:00:17]}  Qg4 {[%clk 0:00:39]} 38. d7 {[%clk 0:00:15]}  Rd8 {[%clk 0:00:39]} 39. Qc7 {[%clk 0:00:13]}  Bg5 {[%clk 0:00:39]} 40. Qd6 {[%clk 0:00:12]}  Be4 {[%clk 0:00:37]} 41. Rh3+ {[%clk 0:00:11]}  Kg8 {[%clk 0:00:38]} 42. Rd2 {[%clk 0:00:09]}  f3 {[%clk 0:00:36]} 43. Qd4 {[%clk 0:00:08]}  fxg2 {[%clk 0:00:35]} 44. Rh8+ {[%clk 0:00:05]}  Kf7 {[%clk 0:00:35]} 45. Rxd8 {[%clk 0:00:05]}  Bxd8 {[%clk 0:00:22]} 46. Rf2+ {[%clk 0:00:04]}  Kg8 {[%clk 0:00:17]} 47. Qc4+ {[%clk 0:00:03]}  Kh8 {[%clk 0:00:14]} 48. Qd4+ {[%clk 0:00:03]}  Kh7 {[%clk 0:00:13]} 49. Qd6 {[%clk 0:00:02]}  Qd1+ {[%clk 0:00:12]} 50. Qxd1 {[%clk 0:00:01]}  Bf3 {[%clk 0:00:12]} 51. Qd2 {[%clk 0:00:02]}  Bg5 {[%clk 0:00:13]} 52. Qd3+ {[%clk 0:00:02]}  Be4 {[%clk 0:00:13]} 53. Qxe4+ {[%clk 0:00:02]}  Kh6 {[%clk 0:00:14]} 54. Qe3 {[%clk 0:00:02]}  Bxe3 {[%clk 0:00:14]} 55. Kxg2 {[%clk 0:00:02]}  Bxf2 {[%clk 0:00:14]} 56. Kxf2 {[%clk 0:00:03]}  Kg5 {[%clk 0:00:14]} 57. d8=Q+ {[%clk 0:00:03]}  Kf5 {[%clk 0:00:14]} 58. Qc7 {[%clk 0:00:03]}  Ke4 {[%clk 0:00:15]} 59. Qxa7 {[%clk 0:00:04]}  b5 {[%clk 0:00:16]} 60. Qb6 {[%clk 0:00:04]}  Kd5 {[%clk 0:00:17]} 61. Qxb5+ {[%clk 0:00:05]}  Ke6 {[%clk 0:00:18]} 62. a5 {[%clk 0:00:05]}  Kd6 {[%clk 0:00:19]} 63. a6 {[%clk 0:00:06]}  Kc7 {[%clk 0:00:20]} 64. a7 {[%clk 0:00:06]}  Kd8 {[%clk 0:00:21]} 65. a8=Q+ {[%clk 0:00:06]}  Kc7 {[%clk 0:00:22]} 66. Qa7+ {[%clk 0:00:06]}  Kd8 {[%clk 0:00:23]} 67. Qbb8# {[%clk 0:00:05]} 1-0


[Site "https://www.chess.com"]

[Event "Titled Tuesday Blitz July 25 Late 2023"]
[White "Alexikov, Alexander"]
[Black "Barwinska, Ewa"]
[WhiteFideId "14103958"]
[BlackFideId "21833761"]
[WhiteElo "2200"]
[BlackElo "2281"]
[Result "0-1"]
[Round "10"]
[TimeControl "180+2"]
[Date "2023.07.25"]
[WhiteClock "0:00:00"]
[BlackClock "0:00:27"]
[Board "116"]

1. e4 {[%clk 0:03:00]}  c5 {[%clk 0:02:56]} 2. Nf3 {[%clk 0:02:59]}  d6 {[%clk 0:02:56]} 3. d4 {[%clk 0:02:59]}  cxd4 {[%clk 0:02:57]} 4. Nxd4 {[%clk 0:02:58]}  Nf6 {[%clk 0:02:57]} 5. Nc3 {[%clk 0:02:58]}  a6 {[%clk 0:02:58]} 6. Be2 {[%clk 0:02:57]}  e5 {[%clk 0:02:58]} 7. Nb3 {[%clk 0:02:55]}  Be6 {[%clk 0:02:58]} 8. f4 {[%clk 0:02:50]}  exf4 {[%clk 0:02:54]} 9. Bxf4 {[%clk 0:02:48]}  Nc6 {[%clk 0:02:53]} 10. Qd2 {[%clk 0:02:46]}  Ne5 {[%clk 0:02:49]} 11. O-O-O {[%clk 0:02:45]}  Be7 {[%clk 0:02:49]} 12. Kb1 {[%clk 0:02:41]}  b5 {[%clk 0:02:48]} 13. Qe3 {[%clk 0:02:27]}  Qc7 {[%clk 0:02:37]} 14. Nd4 {[%clk 0:02:08]}  O-O {[%clk 0:02:27]} 15. Nf5 {[%clk 0:02:04]}  Bxf5 {[%clk 0:02:20]} 16. exf5 {[%clk 0:02:03]}  b4 {[%clk 0:02:20]} 17. Nd5 {[%clk 0:01:43]}  Nxd5 {[%clk 0:02:19]} 18. Rxd5 {[%clk 0:01:42]}  Rac8 {[%clk 0:02:11]} 19. Rd2 {[%clk 0:01:25]}  Bf6 {[%clk 0:02:08]} 20. Qb3 {[%clk 0:01:02]}  a5 {[%clk 0:01:54]} 21. Rhd1 {[%clk 0:00:58]}  Rfd8 {[%clk 0:01:14]} 22. g4 {[%clk 0:00:56]}  h6 {[%clk 0:01:08]} 23. Qg3 {[%clk 0:00:46]}  a4 {[%clk 0:00:52]} 24. h4 {[%clk 0:00:38]}  b3 {[%clk 0:00:50]} 25. cxb3 {[%clk 0:00:32]}  axb3 {[%clk 0:00:48]} 26. axb3 {[%clk 0:00:32]}  Qa5 {[%clk 0:00:36]} 27. Rxd6 {[%clk 0:00:26]}  Rxd6 {[%clk 0:00:33]} 28. Rxd6 {[%clk 0:00:00]}  Qc5 {[%clk 0:00:27]} 0-1


[Site "https://www.chess.com"]

[Event "Titled Tuesday Blitz July 25 Late 2023"]
[White "Biliy, Vadim"]
[Black "Tsukerman, Julia"]
[WhiteFideId "14114127"]
[BlackFideId "2621649"]
[WhiteElo "2272"]
[BlackElo "2118"]
[Result "1-0"]
[Round "10"]
[TimeControl "180+2"]
[Date "2023.07.25"]
[WhiteClock "0:02:14"]
[BlackClock "0:01:25"]
[Board "117"]

1. d4 {[%clk 0:03:00]}  d5 {[%clk 0:02:59]} 2. Nf3 {[%clk 0:03:00]}  Nf6 {[%clk 0:02:57]} 3. e3 {[%clk 0:03:01]}  e6 {[%clk 0:02:57]} 4. c4 {[%clk 0:02:59]}  Be7 {[%clk 0:02:57]} 5. Nc3 {[%clk 0:02:57]}  O-O {[%clk 0:02:57]} 6. Be2 {[%clk 0:02:56]}  dxc4 {[%clk 0:02:55]} 7. Bxc4 {[%clk 0:02:56]}  a6 {[%clk 0:02:55]} 8. O-O {[%clk 0:02:55]}  b5 {[%clk 0:02:55]} 9. Bd3 {[%clk 0:02:55]}  Bb7 {[%clk 0:02:56]} 10. Qe2 {[%clk 0:02:52]}  Nbd7 {[%clk 0:02:56]} 11. Rd1 {[%clk 0:02:51]}  Rc8 {[%clk 0:02:56]} 12. e4 {[%clk 0:02:51]}  c5 {[%clk 0:02:55]} 13. e5 {[%clk 0:02:47]}  Nd5 {[%clk 0:02:53]} 14. Ne4 {[%clk 0:02:41]}  cxd4 {[%clk 0:02:40]} 15. h4 {[%clk 0:02:33]}  Nc5 {[%clk 0:02:17]} 16. Nxc5 {[%clk 0:02:25]}  Bxc5 {[%clk 0:02:11]} 17. Bxh7+ {[%clk 0:02:16]}  Kxh7 {[%clk 0:02:03]} 18. Ng5+ {[%clk 0:02:16]}  Kg6 {[%clk 0:01:25]} 19. h5+ {[%clk 0:02:14]} 1-0


[Site "https://www.chess.com"]

[Event "Titled Tuesday Blitz July 25 Late 2023"]
[White "Burke, Paul"]
[Black "Hartikainen, Jarmo"]
[WhiteFideId "2605767"]
[BlackFideId "503134"]
[WhiteElo "1927"]
[BlackElo "2077"]
[Result "0-1"]
[Round "10"]
[TimeControl "180+2"]
[Date "2023.07.25"]
[WhiteClock "0:00:00"]
[BlackClock "0:00:19"]
[Board "119"]

1. e4 {[%clk 0:03:00]}  c5 {[%clk 0:02:59]} 2. Nf3 {[%clk 0:03:00]}  Nc6 {[%clk 0:02:59]} 3. d4 {[%clk 0:03:01]}  cxd4 {[%clk 0:03:00]} 4. c3 {[%clk 0:03:01]}  d5 {[%clk 0:02:59]} 5. exd5 {[%clk 0:03:01]}  Qxd5 {[%clk 0:02:59]} 6. cxd4 {[%clk 0:03:01]}  Bg4 {[%clk 0:02:58]} 7. Be2 {[%clk 0:03:01]}  e6 {[%clk 0:02:58]} 8. Nc3 {[%clk 0:03:01]}  Qa5 {[%clk 0:02:57]} 9. O-O {[%clk 0:02:59]}  Nf6 {[%clk 0:02:57]} 10. Be3 {[%clk 0:03:00]}  Be7 {[%clk 0:02:57]} 11. a3 {[%clk 0:03:00]}  O-O {[%clk 0:02:57]} 12. b4 {[%clk 0:02:59]}  Qd8 {[%clk 0:02:57]} 13. h3 {[%clk 0:02:57]}  Bh5 {[%clk 0:02:56]} 14. Ne5 {[%clk 0:02:53]}  Bxe2 {[%clk 0:02:53]} 15. Nxe2 {[%clk 0:02:50]}  Rc8 {[%clk 0:02:45]} 16. Nxc6 {[%clk 0:02:46]}  Rxc6 {[%clk 0:02:43]} 17. Rc1 {[%clk 0:02:46]}  Rxc1 {[%clk 0:02:29]} 18. Qxc1 {[%clk 0:02:45]}  Nd5 {[%clk 0:02:23]} 19. Nc3 {[%clk 0:02:29]}  Nxc3 {[%clk 0:02:08]} 20. Qxc3 {[%clk 0:02:28]}  Qd5 {[%clk 0:01:56]} 21. Rc1 {[%clk 0:02:26]}  Bf6 {[%clk 0:01:49]} 22. Qc7 {[%clk 0:02:23]}  a6 {[%clk 0:01:34]} 23. Rc5 {[%clk 0:02:19]}  Qe4 {[%clk 0:01:30]} 24. Rc4 {[%clk 0:01:55]}  h6 {[%clk 0:01:23]} 25. Qg3 {[%clk 0:01:51]}  Kh8 {[%clk 0:01:20]} 26. Qf3 {[%clk 0:00:00]}  Qxf3 {[%clk 0:00:19]} 0-1


[Site "https://www.chess.com"]

[Event "Titled Tuesday Blitz July 25 Late 2023"]
[White "Sainz Aguirre, Ignacio"]
[Black "Bhavikatti, Neil"]
[WhiteFideId "5101727"]
[BlackFideId "30935024"]
[WhiteElo "1969"]
[BlackElo "2430"]
[Result "1-0"]
[Round "10"]
[TimeControl "180+2"]
[Date "2023.07.25"]
[WhiteClock "0:00:15"]
[BlackClock "0:00:27"]
[Board "120"]

1. e4 {[%clk 0:02:49]}  e5 {[%clk 0:02:59]} 2. Nf3 {[%clk 0:02:49]}  Nc6 {[%clk 0:03:00]} 3. Bc4 {[%clk 0:02:49]}  Bc5 {[%clk 0:02:59]} 4. O-O {[%clk 0:02:48]}  Nf6 {[%clk 0:03:00]} 5. d3 {[%clk 0:02:47]}  O-O {[%clk 0:02:59]} 6. h3 {[%clk 0:02:46]}  d5 {[%clk 0:02:55]} 7. exd5 {[%clk 0:02:44]}  Nxd5 {[%clk 0:02:56]} 8. Re1 {[%clk 0:02:17]}  Nb6 {[%clk 0:02:55]} 9. Bb3 {[%clk 0:02:10]}  Be6 {[%clk 0:02:25]} 10. Bxe6 {[%clk 0:01:55]}  fxe6 {[%clk 0:02:25]} 11. Nbd2 {[%clk 0:01:51]}  Nd4 {[%clk 0:02:22]} 12. Rxe5 {[%clk 0:01:46]}  Nd7 {[%clk 0:02:12]} 13. Re4 {[%clk 0:01:43]}  Nf6 {[%clk 0:02:07]} 14. Re1 {[%clk 0:01:32]}  Nd5 {[%clk 0:02:02]} 15. c3 {[%clk 0:01:23]}  Nxf3+ {[%clk 0:01:53]} 16. Nxf3 {[%clk 0:01:23]}  Qf6 {[%clk 0:01:47]} 17. d4 {[%clk 0:01:17]}  Bd6 {[%clk 0:01:47]} 18. c4 {[%clk 0:01:13]}  Nf4 {[%clk 0:01:44]} 19. Bxf4 {[%clk 0:01:12]}  Bxf4 {[%clk 0:01:44]} 20. Qd3 {[%clk 0:00:59]}  Bd6 {[%clk 0:01:32]} 21. c5 {[%clk 0:00:56]}  Bf4 {[%clk 0:01:29]} 22. Qe4 {[%clk 0:00:56]}  Rae8 {[%clk 0:01:28]} 23. Rad1 {[%clk 0:00:52]}  c6 {[%clk 0:01:23]} 24. b4 {[%clk 0:00:50]}  Qf5 {[%clk 0:01:22]} 25. Qxf5 {[%clk 0:00:49]}  exf5 {[%clk 0:01:23]} 26. Kf1 {[%clk 0:00:48]}  Kf7 {[%clk 0:01:21]} 27. Rxe8 {[%clk 0:00:48]}  Rxe8 {[%clk 0:01:21]} 28. Re1 {[%clk 0:00:45]}  Rxe1+ {[%clk 0:01:18]} 29. Kxe1 {[%clk 0:00:46]}  Ke6 {[%clk 0:01:17]} 30. Ke2 {[%clk 0:00:46]}  Kd5 {[%clk 0:01:16]} 31. Kd3 {[%clk 0:00:46]}  Bc7 {[%clk 0:01:09]} 32. g3 {[%clk 0:00:44]}  g6 {[%clk 0:01:07]} 33. Ng5 {[%clk 0:00:41]}  h6 {[%clk 0:01:06]} 34. Nf3 {[%clk 0:00:36]}  g5 {[%clk 0:01:05]} 35. Ne1 {[%clk 0:00:32]}  a5 {[%clk 0:00:57]} 36. a3 {[%clk 0:00:31]}  axb4 {[%clk 0:00:54]} 37. axb4 {[%clk 0:00:31]}  f4 {[%clk 0:00:51]} 38. g4 {[%clk 0:00:26]}  b6 {[%clk 0:00:47]} 39. Nf3 {[%clk 0:00:23]}  bxc5 {[%clk 0:00:46]} 40. bxc5 {[%clk 0:00:22]}  Ba5 {[%clk 0:00:41]} 41. h4 {[%clk 0:00:23]}  gxh4 {[%clk 0:00:38]} 42. Nxh4 {[%clk 0:00:22]}  Be1 {[%clk 0:00:38]} 43. Ng2 {[%clk 0:00:20]}  Ke6 {[%clk 0:00:28]} 44. Nxe1 {[%clk 0:00:19]}  Kf6 {[%clk 0:00:29]} 45. Ng2 {[%clk 0:00:17]}  Kg5 {[%clk 0:00:29]} 46. Ke4 {[%clk 0:00:17]}  Kxg4 {[%clk 0:00:29]} 47. Nxf4 {[%clk 0:00:17]}  h5 {[%clk 0:00:30]} 48. f3+ {[%clk 0:00:17]}  Kg5 {[%clk 0:00:27]} 49. d5 {[%clk 0:00:15]} 1-0


[Site "https://www.chess.com"]

[Event "Titled Tuesday Blitz July 25 Late 2023"]
[White "OPQRC"]
[Black "dorpato"]
[WhiteElo "2595"]
[BlackElo "2027"]
[Result "1-0"]
[Round "10"]
[TimeControl "180+2"]
[Date "2023.07.25"]
[WhiteClock "0:02:07"]
[BlackClock "0:00:08"]
[Board "123"]

1. e4 {[%clk 0:03:00]}  c5 {[%clk 0:02:59]} 2. Nc3 {[%clk 0:02:58]}  d6 {[%clk 0:02:55]} 3. g3 {[%clk 0:02:58]}  Nf6 {[%clk 0:02:54]} 4. Bg2 {[%clk 0:02:59]}  Nc6 {[%clk 0:02:54]} 5. Nge2 {[%clk 0:02:59]}  e6 {[%clk 0:02:51]} 6. O-O {[%clk 0:02:59]}  Be7 {[%clk 0:02:50]} 7. f4 {[%clk 0:02:59]}  O-O {[%clk 0:02:48]} 8. d3 {[%clk 0:03:00]}  d5 {[%clk 0:02:43]} 9. e5 {[%clk 0:03:00]}  Ne8 {[%clk 0:02:40]} 10. g4 {[%clk 0:02:59]}  f6 {[%clk 0:02:40]} 11. exf6 {[%clk 0:02:58]}  Nxf6 {[%clk 0:02:35]} 12. Ng3 {[%clk 0:02:58]}  b6 {[%clk 0:02:30]} 13. Kh1 {[%clk 0:02:58]}  Bb7 {[%clk 0:02:30]} 14. f5 {[%clk 0:02:58]}  e5 {[%clk 0:02:28]} 15. g5 {[%clk 0:02:58]}  Ne8 {[%clk 0:02:08]} 16. Nxd5 {[%clk 0:02:58]}  Bxg5 {[%clk 0:02:05]} 17. Qg4 {[%clk 0:02:53]}  Bxc1 {[%clk 0:02:00]} 18. Raxc1 {[%clk 0:02:54]}  Nf6 {[%clk 0:01:59]} 19. Nxf6+ {[%clk 0:02:53]}  Qxf6 {[%clk 0:02:00]} 20. Ne4 {[%clk 0:02:53]}  Qh6 {[%clk 0:01:33]} 21. f6 {[%clk 0:02:52]}  Rad8 {[%clk 0:01:16]} 22. Qe6+ {[%clk 0:02:13]}  Kh8 {[%clk 0:01:12]} 23. Nd6 {[%clk 0:02:14]}  Qg6 {[%clk 0:00:15]} 24. Nxb7 {[%clk 0:02:12]}  Rc8 {[%clk 0:00:15]} 25. Nd6 {[%clk 0:02:08]}  Rc7 {[%clk 0:00:15]} 26. fxg7+ {[%clk 0:02:07]}  Qxg7 {[%clk 0:00:14]} 27. Rxf8+ {[%clk 0:02:08]}  Qxf8 {[%clk 0:00:13]} 28. Rf1 {[%clk 0:02:07]}  Qg7 {[%clk 0:00:11]} 29. Qe8+ {[%clk 0:02:07]}  Qg8 {[%clk 0:00:08]} 30. Rf8 {[%clk 0:02:07]} 1-0


[Site "https://www.chess.com"]